Cogmind - Beta 9.6 @@@ ROGUE MODE // 2020.08.12 @ 00:22:58 Player: Nalzok Result: Destroyed by S-27 Virus with Autogun Performance ------------- Evolutions (5) 2500 Regions Visited (14) 2800 Robots Destroyed (114) 570 Value Destroyed (3706) 3706 Prototype IDs (29) 580 Alien Tech Used (1) 200 Bonus (1381) 1381 TOTAL SCORE: 11737 Bonus ------- High Alert Combat Kills 213 Follower Combat Kills 206 Entered Garrisons 200 Used RIF Installer 500 Aligned with FarCom 300 Friendly Fire -38 Cogmind --------- Core Integrity 0/1000 Matter 289/300 Energy 95/100 System Corruption 4% Temperature Cool (0) Movement Treading (160) Location -5/Upper Caves Parts ------- > --- POWER (2) -------- (None) > --- PROPULSION (4) --- Heavy Treads > --- UTILITY (7) ------ Advanced Weight Redist. System Enhanced Optical Array Improved Target Analyzer Advanced System Shield > --- WEAPON (4) ------- Axe > --- INVENTORY (4) ---- Micro Fission Core Microactuators Insulated Plating Field Lobotomy Kit Peak State ------------ > --- POWER ------------ Angular Momentum Engine Micro Fission Core > --- PROPULSION ------- Nuclear Pulse Thruster Field Propulsion Drive Field Propulsion Drive Field Propulsion Drive > --- UTILITY ---------- Advanced Heat Sink High-capacity Storage Unit Energy Well Advanced Weight Redist. System Enhanced Optical Array Advanced Melee Analysis Suite Microactuators > --- WEAPON ----------- Improved Arc Projector Phase Cannon Neutron Cannon Axe > --- INVENTORY -------- Angular Momentum Engine Armored Leg Field Propulsion Drive Advanced Heat Sink Advanced Terrain Scan Processor Insulated Plating Remote Force Field Gatling Laser Disruptor Cannon Heavy Phase Cannon Magnetic Acceleration Cannon Field Lobotomy Kit [Rating: 87] Favorites ----------- Power Heavy Ion Engine Engine Heavy Ion Engine Power Core Micro Fission Core Propulsion Aluminum Leg Treads Improved Treads Leg Aluminum Leg Wheel Armored Wheel Hover Unit Airjet Flight Unit Field Propulsion Drive Utility High-capacity Storage Unit Device Cooling System Storage High-capacity Storage Unit Processor Improved Targeting Computer Hackware Advanced System Shield Protection Insulated Plating Weapon High-powered Shotgun Energy Gun EM Pulse Gun Energy Cannon Phase Cannon Ballistic Gun High-powered Shotgun Ballistic Cannon Flak Cannon Launcher Mini Grenade Launcher Special Weapon Remote Datajack Slashing Weapon Axe Special Melee Weapon Datajack Build | -11 -10 -9 -9 -9 -8 -8 -8 -7 -7 -7 -6 -5 -5 -5 ------- Run | Scr Mat Mat Min Exi Min Mat Gar Fac Was Fac Fac Fac Upp Upp Slots Evolved 10 | . . 2 . . . 2 . 2 . . 2 2 . . Power 1 | . . . . . . . . . . . . 1 . . Propulsion 2 | . . . . . . . . . . . 2 . . . Utility 5 | . . . . . . 2 . 2 . . . 1 . . Weapon 2 | . . 2 . . . . . . . . . . . . Parts Attached 156 | . 7 22 . 1 . 12 7 10 2 17 32 25 7 14 Power 18 | . 1 1 . . . 1 . 1 . 2 4 7 1 . Engine 9 | . 1 1 . . . 1 . 1 . . 2 3 . . Core 9 | . . . . . . . . . . 2 2 4 1 . Reactor . | . . . . . . . . . . . . . . . Propulsion 43 | . 3 5 . . . 5 . . 1 4 13 6 . 6 Treads 4 | . . . . . . . . . . . . . . 4 Leg 16 | . 3 5 . . . 5 . . 1 . 2 . . . Wheel 13 | . . . . . . . . . . . 6 5 . 2 Hover 4 | . . . . . . . . . . 3 1 . . . Flight 6 | . . . . . . . . . . 1 4 1 . . Utility 39 | . 2 3 . 1 . 3 3 5 . 6 7 5 2 2 Device 13 | . . 2 . . . . 1 1 . 4 2 2 1 . Storage 9 | . 2 . . 1 . . 1 1 . 1 1 . . 2 Processor 7 | . . . . . . 1 . . . . 4 2 . . Hackware 4 | . . . . . . 1 . 1 . 1 . . 1 . Protection 6 | . . 1 . . . 1 1 2 . . . 1 . . Artifact . | . . . . . . . . . . . . . . . Weapon 56 | . 1 13 . . . 3 4 4 1 5 8 7 4 6 Energy Gun 15 | . . 3 . . . . . 1 . 3 1 3 3 1 Energy Cannon 9 | . . 1 . . . . . . . . 3 4 . 1 Ballistic Gun 14 | . 1 6 . . . 1 1 1 . . 1 . . 3 Ballistic Cannon 8 | . . 1 . . . 1 2 . 1 . 2 . 1 . Launcher 5 | . . 2 . . . 1 1 1 . . . . . . Special Weapon 1 | . . . . . . . . 1 . . . . . . Impact Weapon . | . . . . . . . . . . . . . . . Slashing Weapon 2 | . . . . . . . . . . . 1 . . 1 Piercing Weapon . | . . . . . . . . . . . . . . . Special Melee Weapon 2 | . . . . . . . . . . 2 . . . . Unidentified Prototypes 6 | . . 2 . . . . . 1 . 1 . 1 . 1 Parts Lost 50 | . . 1 . . . 1 4 . 4 . 10 6 3 21 Power 4 | . . . . . . . . . 1 . . 1 . 2 Propulsion 14 | . . . . . . 1 . . . . 3 3 . 7 Utility 12 | . . . . . . . 2 . 2 . 2 1 1 4 Weapon 20 | . . 1 . . . . 2 . 1 . 5 1 2 8 Highest Loss Streak 11 | . . 1 . . . 1 1 . 3 . 5 6 3 11 Average Slot Usage (%) 86 | . 94 99 100 100 100 99 99 99 71 37 85 88 96 53 Engine 6 | . 14 11 11 11 11 9 9 7 5 . 2 4 . . Core 1 | . . . . . . . . . . 5 3 5 10 2 Leg 11 | . 27 21 22 22 22 17 18 15 11 . . . . . Wheel 2 | . . . . . . . . . . . 4 4 23 3 Hover 1 | . . . . . . . . . . 7 9 . . . Flight 2 | . . . . . . . . . . . 6 16 . . Device 9 | . . 5 11 11 11 9 9 12 6 4 17 15 11 5 Storage 10 | . 23 13 11 11 11 9 13 15 11 . 6 11 11 6 Processor 6 | . . . . . . 9 9 7 5 . 11 10 11 11 Hackware 2 | . . . . . . 4 1 . 5 5 2 . 2 5 Protection 1 | . . 3 . . . 3 2 8 . . . 1 . . Energy Gun 2 | . 9 13 . . . . . . . 4 2 2 9 1 Ballistic Gun 11 | . 18 25 22 22 22 18 14 7 5 . 3 . . 4 Ballistic Cannon 6 | . . . 11 11 11 9 11 15 11 . 3 . 3 . Launcher 4 | . . 4 11 11 11 9 9 5 . . . . . . Slashing Weapon 1 | . . . . . . . . . . . 2 5 5 4 Naked Turns 89 | . . . . . . . . . 43 46 . . . . Heaviest Build 86 | 9 24 41 39 55 55 62 64 72 67 48 72 86 86 76 Greatest Support 70 | 20 20 23 23 23 23 32 32 32 32 29 45 57 57 70 Greatest Overweight (x) 14 | . 1 2 1 2 2 3 1 2 2 3 3 3 1 14 Average Overweight (x) 1 | . . 1 1 1 2 1 1 1 1 . 1 1 1 5 Largest Inventory Capacity 12 | 6 10 10 10 12 12 12 12 12 12 12 12 12 12 12 Average Capacity 11 | 6 7 10 10 11 12 12 12 12 10 4 12 12 12 11 Most Carried 12 | 5 9 10 10 12 12 12 12 12 12 6 12 12 12 12 Average Carried 10 | 3 6 9 10 11 12 11 11 11 10 4 11 11 11 7 Final Capacity 12 | 6 10 10 10 12 12 12 12 12 4 12 12 12 12 4 Final Carried 12 | 2 9 10 10 12 12 12 12 12 4 6 12 12 12 4 Class Distribution -------------------- 29% | Skirmisher 28% | Mutant 22% | Gunner 11% | Scavenger-Mutant 3% | Machinist-Mutant 3% | Tank Dominant Class ---------------- Mutant | -10/Materials Gunner | -9/Materials Gunner | -9/Mines Gunner | -9/Exiles Skirmisher | -8/Mines Skirmisher | -8/Materials Skirmisher | -8/Garrison Skirmisher | -7/Factory Mutant | -7/Waste Mutant | -7/Factory Mutant | -6/Factory Mutant | -5/Factory Scavenger-Mutant | -5/Upper Caves Mutant | -5/Upper Caves Resources | -11 -10 -9 -9 -9 -8 -8 -8 -7 -7 -7 -6 -5 -5 -5 ----------- Run | Scr Mat Mat Min Exi Min Mat Gar Fac Was Fac Fac Fac Upp Upp Matter Collected 3662 | 200 94 532 98 . 24 414 738 228 . 71 690 224 65 284 Remotely . | . . . . . . . . . . . . . . . Salvage Created 4119 | . 94 673 51 . . 507 763 315 . . 888 347 137 344 Parts 245 | . 6 58 9 . . 32 34 17 . . 44 30 2 13 Haulers Intercepted 3 | . . 2 . . . . . 1 . . . . . . Recyclers Shooed 5 | . . 1 . . . 1 . 1 . . 2 . . . Parts Field Recycled . | . . . . . . . . . . . . . . . Retrieved Matter . | . . . . . . . . . . . . . . . Parts Self-Destructed 6 | . . . . . . . . . . . . . . 6 Prevented 2 | . . . . . . . . . . . . . . 2 Kills | -11 -10 -9 -9 -9 -8 -8 -8 -7 -7 -7 -6 -5 -5 -5 ------- Run | Scr Mat Mat Min Exi Min Mat Gar Fac Was Fac Fac Fac Upp Upp Combat Hostiles Destroyed 81 | . 2 16 2 . . 8 21 3 . . 13 6 2 8 Melee 6 | . . . . . . . . . . . 4 . 2 . Guns 40 | . 2 8 2 . . 4 9 2 . . 7 1 . 5 Cannons 16 | . . . . . . 2 5 1 . . 2 5 . 1 AOE 18 | . . 8 . . . 2 7 . . . . . . 1 Classes Destroyed 16 | . 2 5 1 . . 4 . 1 . . 2 . . 1 Worker 5 | . . 4 . . . . . 1 . . . . . . Builder 11 | . 1 3 1 . . 3 . . . . . 3 . . Tunneler 2 | . . . 1 . . 1 . . . . . . . . Hauler 3 | . . 2 . . . . . 1 . . . . . . Recycler 6 | . . 1 . . . 1 . 2 . . 2 . . . Operator 1 | . . . . . . 1 . . . . . . . . Watcher 1 | . . . . . . . . . . . 1 . . . Swarmer 28 | . . 6 2 . . . 6 . . . 4 3 . 7 Grunt 30 | . 2 7 . . . 4 11 1 . . 4 . 1 . Brawler 2 | . . . . . . 1 1 . . . . . . . Duelist 4 | . . . . . . 1 2 . . . 1 . . . Protector 1 | . . . . . . . . . . . 1 . . . Sentry 9 | . . 3 . . . . 1 . . . 2 1 1 1 Hunter 2 | . . . . . . 2 . . . . . . . . Programmer 5 | . . . . . . . . 2 . . 1 2 . . Decomposer 3 | . . . . . . . . . . . . . . 3 Samaritan 1 | . . . . . . . . . . . . . . 1 Best Kill Streak 9 | . 2 8 3 . . 9 4 4 . . 4 4 1 3 Combat Bots Only 6 | . 2 6 2 . . 4 4 1 . . 4 3 1 3 Max Kills in Single Turn 5 | . 1 5 1 . . 2 2 1 . . 1 2 1 2 Gunslinging . | . . . . . . . . . . . . . . . Exploded 5 | . . 5 . . . 1 2 . . . . . . 1 Melee 1 | . . . . . . . . . . . 1 . 1 . Uniques/NPCs Destroyed . | . . . . . . . . . . . . . . . Combat | -11 -10 -9 -9 -9 -8 -8 -8 -7 -7 -7 -6 -5 -5 -5 -------- Run | Scr Mat Mat Min Exi Min Mat Gar Fac Was Fac Fac Fac Upp Upp Damage Taken 8049 | . 86 726 122 . . 502 674 220 408 93 1031 723 578 2886 Core 1931 | . . 196 15 . . 32 112 17 374 30 155 89 19 892 Absorbed by Shields 201 | . . . . . . . 13 . . . . . 99 89 Core Remaining (%) 73 | 100 100 . . . 47 . 73 . . 39 81 . . . Volleys Fired 242 | . 15 33 7 . 1 22 43 13 4 . 40 19 9 36 Largest 4 | . 2 4 3 . 3 4 4 4 1 . 3 3 3 3 Hottest 268 | . 60 126 94 . 94 130 149 177 44 . 235 268 261 199 Shots Fired 656 | . 29 127 21 . 3 75 143 46 5 1 65 54 20 67 Gun 409 | . 29 118 14 . 2 34 77 21 . 1 38 18 5 52 Cannon 195 | . . . 7 . 1 22 46 24 2 . 27 36 15 15 Launcher 48 | . . 9 . . . 19 20 . . . . . . . Special 4 | . . . . . . . . 1 3 . . . . . Kinetic 441 | . 24 76 21 . 3 56 123 41 2 . 54 . . 41 Thermal 82 | . 5 . . . . . . 4 . . 8 44 17 4 Explosive 9 | . . 9 . . . . . . . . . . . . Electromagnetic 120 | . . 42 . . . 19 20 . . 1 3 10 3 22 Robot Hit Streak 13 | . 4 13 2 . 1 6 11 6 5 . 12 11 6 9 Robot Miss Streak 12 | . 3 6 12 . 7 8 5 4 3 . 11 3 2 5 Penetration Max 1 | . . . . . . . . 1 . . . . . . Secondary Targets 2 | . . 2 . . . . . . . . . . . . Max Gunslinging Chain 1 | . . 1 . . . . . . . . . . . . Shots Hit Robots 398 | . 16 61 9 . 1 35 70 27 5 4 73 39 19 39 Core Hits 229 | . 7 46 5 . 1 25 43 16 1 . 57 13 3 12 Critical Hits 11 | . . . 1 . . 2 2 1 . . . . 1 4 Critical Kills 2 | . . . 1 . . 1 . . . . . . . . Critical Parts Destroyed 7 | . . . . . . 1 2 1 . . . . . 3 Melee Attacks 64 | . . . . . . . . . . 4 29 17 6 8 Impact . | . . . . . . . . . . . . . . . Slashing 59 | . . . . . . . . . . . 28 17 6 8 Piercing . | . . . . . . . . . . . . . . . Sneak Attacks 12 | . . . . . . . . . . 3 3 1 . 5 Combat Hostiles 1 | . . . . . . . . . . . 1 . . . Follow-up Attacks . | . . . . . . . . . . . . . . . Damage Inflicted 10594 | . 132 1683 154 . 54 1292 1747 567 80 . 1978 885 578 1444 Guns 4302 | . 132 970 128 . 26 437 805 309 . . 690 180 75 550 Cannons 2663 | . . . 26 . 28 266 460 258 72 . 451 581 407 114 Explosions 1914 | . . 713 . . . 589 482 . . . . . . 130 Melee 1707 | . . . . . . . . . . . 837 124 96 650 Ramming 8 | . . . . . . . . . 8 . . . . . Kinetic 4901 | . 101 649 154 . 54 703 1265 472 72 . 1000 . . 431 Thermal 1615 | . 31 29 . . . 63 . 95 . . 89 700 430 178 Explosive 684 | . . 684 . . . . . . . . . . . . Electromagnetic 1679 | . . 321 . . . 526 482 . . . 52 61 52 185 Impact . | . . . . . . . . . . . . . . . Slashing 1707 | . . . . . . . . . . . 837 124 96 650 Piercing . | . . . . . . . . . . . . . . . Highest Corruption 16 | . . . . . . . 1 . 16 16 1 4 4 4 Average Corruption 4 | . . . . . . . 1 . 8 16 1 3 4 4 Corruption Purged . | . . . . . . . . . . . . . . . Effects 94 | . . . . . . . 5 . 10 34 1 7 8 29 Message Errors 24 | . . . . . . . 3 . 4 6 . 1 3 7 Matter Fused 14 | . . . . . . . . . . 6 . 1 . 7 Heat Flow Errors 5 | . . . . . . . . . . . . . . 5 Energy Discharges 11 | . . . . . . . 1 . . 2 1 1 1 5 Parts Rejected 2 | . . . . . . . . . 1 . . . . 1 Data Loss (minor) 12 | . . . . . . . 1 . . 7 . 1 1 2 Data Loss (major) 1 | . . . . . . . . . 1 . . . . . Misfires 2 | . . . . . . . . . 1 1 . . . . Alerts 1 | . . . . . . . . . . 1 . . . . Misdirections 12 | . . . . . . . . . 3 9 . . . . Targeting Errors 9 | . . . . . . . . . . 2 . 3 2 2 Weapon Failures 1 | . . . . . . . . . . . . . 1 . Overload Shots . | . . . . . . . . . . . . . . . Overflow Damage 526 | . . 25 . . . . . . . . 55 19 37 390 Projectiles 99 | . . . . . . . . . . . 43 19 37 . Explosions 25 | . . 25 . . . . . . . . . . . . Melee 402 | . . . . . . . . . . . 12 . . 390 Knockbacks 22 | . . . 1 . 3 1 7 4 . . 6 . . . Impact . | . . . . . . . . . . . . . . . Kinetic 21 | . . . 1 . 3 1 7 4 . . 5 . . . Secondary 1 | . . . . . . . . . . . 1 . . . Self-Inflicted Damage 105 | . . 73 . . . 6 26 . . . . . . . Shots 5 | . . 2 . . . 1 2 . . . . . . . Rammed . | . . . . . . . . . . . . . . . Targets Rammed 1 | . . . . . . . . . 1 . . . . . Kicked 1 | . . . . . . . . . 1 . . . . . Crushed . | . . . . . . . . . . . . . . . Highest Temperature 559 | . 40 395 . . . 8 30 148 6 . 81 438 508 559 Average Temperature 166 | . 12 146 . . . 3 11 46 4 . 38 213 240 252 Received Heat Transfer 1385 | . 48 195 . . . 135 285 18 . . 162 66 189 287 Effects 26 | . . . . . . . . . . . . 5 10 11 Shutdowns 10 | . . . . . . . . . . . . 1 4 5 Energy Bleed 7 | . . . . . . . . . . . . 2 3 2 Interference 2 | . . . . . . . . . . . . . 2 . Matter Decay 2 | . . . . . . . . . . . . . 1 1 Short Circuit 2 | . . . . . . . . . . . . 1 . 1 Damage (minor) 1 | . . . . . . . . . . . . 1 . . Damage (major) 2 | . . . . . . . . . . . . . . 2 Siege Activations . | . . . . . . . . . . . . . . . Robots Corrupted 1 | . . . . . . . . . . . . . . 1 Combat Hostiles 1 | . . . . . . . . . . . . . . 1 Parts Fried 2 | . . . . . . . 1 . . . . . . 1 Impact Corruptions . | . . . . . . . . . . . . . . . Robots Melted . | . . . . . . . . . . . . . . . Combat Hostiles . | . . . . . . . . . . . . . . . Parts Melted 1 | . . . . . . . . . . . . 1 . . Heat Transferred 1986 | . 75 50 . . . 100 . 148 . . 111 769 559 174 Parts Sabotaged . | . . . . . . . . . . . . . . . Parts Stolen . | . . . . . . . . . . . . . . . Parts Stripped . | . . . . . . . . . . . . . . . Power Chain Reactions 9 | . . 1 . . . 4 3 . . . . . . 1 Missiles Intercepted . | . . . . . . . . . . . . . . . Alert | -11 -10 -9 -9 -9 -8 -8 -8 -7 -7 -7 -6 -5 -5 -5 ------- Run | Scr Mat Mat Min Exi Min Mat Gar Fac Was Fac Fac Fac Upp Upp Peak Influence 1332 | . 115 297 195 . . 198 891 494 1332 944 462 204 . . Average Influence 311 | . 58 93 118 . . 64 547 440 584 859 353 153 . . Maximum Alert Level 4 | . . 1 . . . . 3 2 4 3 2 1 . . Low Security (%) 51 | 100 100 89 100 . 100 100 16 . 24 . . 92 . . Level 1 17 | . . 10 . . . . 12 24 18 . 75 7 . . Level 2 14 | . . . . . . . 27 75 18 . 24 . . . Level 3 16 | . . . . . . . 44 . 24 100 . . . . Level 4 . | . . . . . . . . . 14 . . . . . Level 5 . | . . . . . . . . . . . . . . . High Security . | . . . . . . . . . . . . . . . Max Security . | . . . . . . . . . . . . . . . Squads Dispatched 19 | . 1 1 . . . 3 . 2 . 4 4 4 . . Investigation 1 | . . . . . . . . . . 1 . . . . Extermination 4 | . . . . . . . . 1 . . 2 1 . . Reinforcement 10 | . 1 1 . . . 1 . 1 . 2 1 3 . . Assault 2 | . . . . . . . . . . 1 1 . . . Garrison 2 | . . . . . . 2 . . . . . . . . Intercept . | . . . . . . . . . . . . . . . Construction Impeded 1 | . . 1 . . . . . . . . . . . . Haulers Reinforced 2 | . . . . . . . . 1 . . . 1 . . Stealth | -11 -10 -9 -9 -9 -8 -8 -8 -7 -7 -7 -6 -5 -5 -5 --------- Run | Scr Mat Mat Min Exi Min Mat Gar Fac Was Fac Fac Fac Upp Upp Distress Signals 6 | . . 2 . . . 2 . . . . 1 1 . . Communications Jammed . | . . . . . . . . . . . . . . . Distress Signals . | . . . . . . . . . . . . . . . Times Spotted 187 | . 10 22 7 . . 21 26 6 6 12 25 19 9 24 Peak Tracking Total 9 | . 4 6 3 . . 8 5 3 3 5 5 5 4 9 Tactical Retreats 28 | . . 2 . . . 2 4 . . 1 7 2 2 8 Traps | -11 -10 -9 -9 -9 -8 -8 -8 -7 -7 -7 -6 -5 -5 -5 ------- Run | Scr Mat Mat Min Exi Min Mat Gar Fac Was Fac Fac Fac Upp Upp Traps Triggered 16 | . 1 2 . . . . 6 2 . 3 1 1 . . Indirectly . | . . . . . . . . . . . . . . . Trap Hack Attempts . | . . . . . . . . . . . . . . . Triggered . | . . . . . . . . . . . . . . . Disarmed . | . . . . . . . . . . . . . . . Reprogrammed . | . . . . . . . . . . . . . . . Reused . | . . . . . . . . . . . . . . . Traps Extracted . | . . . . . . . . . . . . . . . Installed . | . . . . . . . . . . . . . . . Triggered 1 | . . . . . . . . . . . . . . 1 Machines | -11 -10 -9 -9 -9 -8 -8 -8 -7 -7 -7 -6 -5 -5 -5 ---------- Run | Scr Mat Mat Min Exi Min Mat Gar Fac Was Fac Fac Fac Upp Upp Machines Disabled 8 | . . 1 . . . . 2 . . . 1 2 1 1 Max in Single Turn 1 | . . 1 . . . . 1 . . . 1 1 1 1 Garrison Access 1 | . . . . . . . . . . . 1 . . . Garrison Relay 2 | . . . . . . . 2 . . . . . . . Machines Sabotaged . | . . . . . . . . . . . . . . . Garrisons Compromised . | . . . . . . . . . . . . . . . Overloaded Fab Kills . | . . . . . . . . . . . . . . . Fab Network Shutdowns . | . . . . . . . . . . . . . . . Hacking | -11 -10 -9 -9 -9 -8 -8 -8 -7 -7 -7 -6 -5 -5 -5 --------- Run | Scr Mat Mat Min Exi Min Mat Gar Fac Was Fac Fac Fac Upp Upp Machines Accessed 24 | . . 4 . 2 1 4 . 2 . 5 4 1 1 . Terminals 13 | . . 4 . . 1 2 . 1 . 3 1 1 . . Fabricators 5 | . . . . . . . . 1 . 2 2 . . . Repair Stations . | . . . . . . . . . . . . . . . Recycling Units . | . . . . . . . . . . . . . . . Scanalyzers 1 | . . . . . . 1 . . . . . . . . Garrison Access 2 | . . . . . . 1 . . . . 1 . . . Total Hacks 54 | . . 9 . 2 5 10 . 6 . 13 7 1 1 . Successful 30 | . . 5 . 2 1 7 . 1 . 7 5 1 1 . Failed 24 | . . 4 . . 4 3 . 5 . 6 2 . . . Catastrophic 3 | . . . . . 1 1 . . . . 1 . . . Database Lockouts . | . . . . . . . . . . . . . . . Manual 17 | . . 4 . 1 5 5 . . . . 1 . . 1 Terminals 33 | . . 9 . . 5 7 . 4 . 6 1 1 . . Fabricators 13 | . . . . . . . . 2 . 7 4 . . . Repair Stations . | . . . . . . . . . . . . . . . Recycling Units . | . . . . . . . . . . . . . . . Scanalyzers 2 | . . . . . . 2 . . . . . . . . Garrison Access 3 | . . . . . . 1 . . . . 2 . . . Terminal Hacks 16 | . . 5 . 2 1 3 . 1 . 2 . 1 1 . Record 3 | . . 1 . 1 . . . . . . . . 1 . Part Schematic 2 | . . . . . . . . . . 2 . . . . Prototype ID Bank 2 | . . 1 . . . 1 . . . . . . . . Branch Access Points 2 | . . 1 . . . . . . . . . 1 . . Emergency Access Points 1 | . . . . . . 1 . . . . . . . . Fabricator Index 1 | . . . . . . . . 1 . . . . . . Unreport Threat 4 | . . 2 . . 1 1 . . . . . . . . EX-Prototype ID Bank 1 | . . . . 1 . . . . . . . . . . Fabricator Hacks 8 | . . . . . . . . . . 5 3 . . . Load Schematic 2 | . . . . . . . . . . 1 1 . . . Build 6 | . . . . . . . . . . 4 2 . . . Repair Station Hacks . | . . . . . . . . . . . . . . . Recycling Unit Hacks . | . . . . . . . . . . . . . . . Scanalyzer 2 | . . . . . . 2 . . . . . . . . Insert Component 1 | . . . . . . 1 . . . . . . . . Analyze 1 | . . . . . . 1 . . . . . . . . Garrison Access Hacks 3 | . . . . . . 1 . . . . 2 . . . Unlock Access 1 | . . . . . . 1 . . . . . . . . Seal Access 1 | . . . . . . . . . . . 1 . . . Coupler Status 1 | . . . . . . . . . . . 1 . . . Unauthorized Hacks 1 | . . . . . . 1 . . . . . . . . Terminals 1 | . . . . . . 1 . . . . . . . . Botnet 1 | . . . . . . 1 . . . . . . . . Fabricators . | . . . . . . . . . . . . . . . Repair Stations . | . . . . . . . . . . . . . . . Recycling Units . | . . . . . . . . . . . . . . . Scanalyzers . | . . . . . . . . . . . . . . . Garrison Access . | . . . . . . . . . . . . . . . Data Cores Recovered . | . . . . . . . . . . . . . . . Used . | . . . . . . . . . . . . . . . Hacking Detections 12 | . . 2 . . 1 3 . 2 . 2 2 . . . Full Trace Events 1 | . . . . . . . . . . 1 . . . . Feedback Events . | . . . . . . . . . . . . . . . Feedback Blocked . | . . . . . . . . . . . . . . . Robot Schematics Acquired . | . . . . . . . . . . . . . . . Robots Built 3 | . . . . . . . . . . 3 . . . . Matter 252 | . . . . . . . . . . 252 . . . . Time 134 | . . . . . . . . . . 134 . . . . Total Robot Build Rating 12 | . . . . . . . . . . 12 . . . . Part Schematics Acquired 3 | . . . . . . 1 . . . 2 . . . . Parts Built 6 | . . . . . . . . . . 2 4 . . . Matter 614 | . . . . . . . . . . 190 424 . . . Time 201 | . . . . . . . . . . 95 106 . . . Total Part Build Rating 34 | . . . . . . . . . . 10 24 . . . Parts Repaired . | . . . . . . . . . . . . . . . Time . | . . . . . . . . . . . . . . . Parts Recycled . | . . . . . . . . . . . . . . . Recycled Matter . | . . . . . . . . . . . . . . . Retrieved Matter . | . . . . . . . . . . . . . . . Retrieved Components . | . . . . . . . . . . . . . . . Parts Scanalyzed 1 | . . . . . . 1 . . . . . . . . Part Schematics Acquired 1 | . . . . . . 1 . . . . . . . . Parts Damaged . | . . . . . . . . . . . . . . . Bothacking | -11 -10 -9 -9 -9 -8 -8 -8 -7 -7 -7 -6 -5 -5 -5 ------------ Run | Scr Mat Mat Min Exi Min Mat Gar Fac Was Fac Fac Fac Upp Upp Used RIF Installer 1 | . . . . . . . 1 . . . . . . . Robots Hacked 9 | . . . . . . . . 1 3 4 1 . . . Non-combat 6 | . . . . . . . . 1 . 4 1 . . . Combat 3 | . . . . . . . . . 3 . . . . . Robot Hacks Applied 9 | . . . . . . . . 1 3 4 1 . . . parse_system 1 | . . . . . . . . . . 1 . . . . find_fabricator 3 | . . . . . . . . . . 2 1 . . . find_station 1 | . . . . . . . . . . 1 . . . . map_route 1 | . . . . . . . . 1 . . . . . . ignore_targets 3 | . . . . . . . . . 3 . . . . . Relay Couplers Released 11 | . . . . . . . 7 4 . . . . . . Machine Destruction 7 | . . . . . . . 7 . . . . . . . Programmers 4 | . . . . . . . . 4 . . . . . . Attached 2 | . . . . . . . . 1 . 1 . . . . Robots Rewired . | . . . . . . . . . . . . . . . Allies Hacked . | . . . . . . . . . . . . . . . Hacks Repelled . | . . . . . . . . . . . . . . . Allies | -11 -10 -9 -9 -9 -8 -8 -8 -7 -7 -7 -6 -5 -5 -5 -------- Run | Scr Mat Mat Min Exi Min Mat Gar Fac Was Fac Fac Fac Upp Upp Total Allies 7 | . . . 4 . . . . . . 3 . . . . Largest Group 4 | . . . 4 4 3 3 . . . 3 . . . . Highest-Rated Group 90 | . . . 68 68 37 37 . . . 90 . . . . Highest-Rated Ally 31 | . . . 31 31 16 16 . . . 30 . . . . Total Orders . | . . . . . . . . . . . . . . . Ally Attacks 57 | . . . 11 . . 38 . . . 8 . . . . Total Damage 719 | . . . 127 . . 354 . . . 238 . . . . Kills 10 | . . . 5 . . 5 . . . . . . . . Allies Corrupted . | . . . . . . . . . . . . . . . Allies Melted . | . . . . . . . . . . . . . . . Intel | -11 -10 -9 -9 -9 -8 -8 -8 -7 -7 -7 -6 -5 -5 -5 ------- Run | Scr Mat Mat Min Exi Min Mat Gar Fac Was Fac Fac Fac Upp Upp Robot Analysis Total . | . . . . . . . . . . . . . . . Derelict Logs Recovered 1 | . . . 1 . . . . . . . . . . . Drone Launches . | . . . . . . . . . . . . . . . Drone Recoveries . | . . . . . . . . . . . . . . . Exploration | -11 -10 -9 -9 -9 -8 -8 -8 -7 -7 -7 -6 -5 -5 -5 ------------- Run | Scr Mat Mat Min Exi Min Mat Gar Fac Was Fac Fac Fac Upp Upp Turns Passed 9888 | 3 231 767 903 675 519 543 1272 596 220 606 1058 732 348 1415 Spaces Moved 5495 | 1 128 399 568 410 287 247 662 273 174 653 574 462 276 381 Core 383 | . . . . . . . . . 84 148 . . . 151 Treads 74 | . . . . . . . . . . . . . . 74 Legs 3079 | 1 128 399 568 410 287 247 662 273 90 . 14 . . . Wheels 750 | . . . . . . . . . . . 206 112 276 156 Hover 622 | . . . . . . . . . . 354 268 . . . Flight 587 | . . . . . . . . . . 151 86 350 . . Fastest Speed 40 | 120 120 150 150 150 180 155 155 155 50 40 108 96 100 50 Average Speed 148 | 120 129 152 150 163 180 177 155 183 119 73 112 109 100 331 Slowest Speed 750 | 120 150 180 150 180 180 220 155 185 190 200 285 280 100 750 Overloaded Moves . | . . . . . . . . . . . . . . . Propulsion Burnouts . | . . . . . . . . . . . . . . . Robots Hopped . | . . . . . . . . . . . . . . . Cave-ins Triggered . | . . . . . . . . . . . . . . . Exploration Rate (%) 38 | 2 19 40 89 61 60 21 65 10 88 18 9 14 41 47 Regions Visited 14 Branch Regions 5 Pre-discovered Areas 1 | . . . . 1 . . . . . . . . . . Known Exits Taken 3 | . . 1 . . . 1 . . . . . 1 . . Unknown Exits Taken 8 | 1 1 . 1 1 1 . . . . 1 1 . 1 . Scrap Searched 6 | . . . 1 . 1 . . . . . . . 2 2 Spaces Dug 26 | . . . . . . . . . . . 8 18 . . Terrain Destroyed 148 | . . 68 . . . 13 7 1 . . 10 32 3 14 Melee 24 | . . . . . . . . . . . 8 16 . . Projectile 36 | . . . . . . 5 . 1 . . 2 16 3 9 AOE 88 | . . 68 . . . 8 7 . . . . . . 5 Actions | -11 -10 -9 -9 -9 -8 -8 -8 -7 -7 -7 -6 -5 -5 -5 --------- Run | Scr Mat Mat Min Exi Min Mat Gar Fac Was Fac Fac Fac Upp Upp Total 6651 | 4 168 488 603 415 287 306 817 345 182 767 872 623 317 457 Wait 480 | . 9 3 27 . . . 65 27 . 89 159 75 15 11 Move 5482 | . 127 398 567 409 286 247 660 273 173 652 573 461 275 381 Hop . | . . . . . . . . . . . . . . . Pick Up 81 | . 7 12 . 3 . 11 7 7 1 4 17 8 2 2 Fast Attach 75 | . 3 6 . . . 1 2 4 2 15 21 11 4 6 Attach 27 | . . 3 . . . 2 2 . . 2 4 6 . 8 Detach 8 | . . . . . . . . . . . 4 3 . 1 Swap 55 | . 4 13 . 1 . 9 3 6 . . 7 8 3 1 Drop 99 | 4 3 20 . 2 . 14 5 10 1 1 18 15 3 3 Fire 242 | . 15 33 7 . 1 22 43 13 4 . 40 19 9 36 Melee 64 | . . . . . . . . . . 4 29 17 6 8 Ram . | . . . . . . . . . . . . . . . Kick 1 | . . . . . . . . . 1 . . . . . Crush . | . . . . . . . . . . . . . . . Escape Stasis 34 | . . . . . . . 29 5 . . . . . . Rewire 3 | . . . 2 . . . 1 . . . . . . . Trap . | . . . . . . . . . . . . . . . Miscellaneous . | . . . . . . . . . . . . . . . Route ------- -11/Scrapyard -10/Materials -9/Materials (discovered 2 exits: *Min x2) -9/Mines (discovered 3 exits: *Mat x2 / *Exi) -9/Exiles (discovered 2 exits: *Min x2) -8/Mines -8/Materials (discovered 2 exits: Fac / Gar) -8/Garrison (discovered 3 exits: *Fac x3) -7/Factory -7/Waste -7/Factory -6/Factory -5/Factory (discovered 2 exits: *Upp x2) -5/Upper Caves -5/Upper Caves (discovered 1 exit: [*Fac]) History --------- Turn | Location | Event 4 | -11/Scrapyard | Discovered new exit (range 0) 4 | -11/Scrapyard | Entered Materials 122 | -10/Materials | Discovered new exit (range 14) 235 | -10/Materials | Entered another Materials area 235 | -9/Materials | Evolved 2 slots: Weapon x2 588 | -9/Materials | Identified exit to Mines 909 | -9/Materials | Build established: Gunner 1002 | -9/Materials | Entered Mines 1008 | -9/Mines | Learned 4 Materials zone layouts 1027 | -9/Mines | Assembled infested the area 1133 | -9/Mines | Discovered new exit (range 5) 1166 | -9/Mines | Met 8R-AWN 1397 | -9/Mines | Assisted by bots powering up and referring to "LRC-V3" 1492 | -9/Mines | Core integrity fell below 50% 1522 | -9/Mines | Discovered new exit (range 9) 1687 | -9/Mines | Received a Mining Laser from a helpful Derelict 1893 | -9/Mines | Discovered new exit (range 5) 1905 | -9/Mines | Entered Exiles 1905 | -9/Exiles | Accompanied by 4 allies 1925 | -9/Exiles | Discovered new exit (range 15) 1946 | -9/Exiles | Welcomed by 8R-AWN 1968 | -9/Exiles | Met EX-HEX 2010 | -9/Exiles | Met EX-BIN 2031 | -9/Exiles | Aligned with FarCom system 2033 | -9/Exiles | Given EX-Vault access code 2070 | -9/Exiles | Opened EX-Vault 2112 | -9/Exiles | Warned to stay clear of 0b10 Research branches 2156 | -9/Exiles | Met EX-DEC 2162 | -9/Exiles | Learned location of Zion (-7) 2398 | -9/Exiles | Found Field Lobotomy Kit 2553 | -9/Exiles | Discovered new exit (range 14) 2580 | -9/Exiles | Left Exiles lab with Field Lobotomy Kit 2580 | -9/Exiles | Entered Mines 2580 | -8/Mines | Accompanied by 3 allies 2643 | -8/Mines | Discovered new exit (range 12) 2874 | -8/Mines | Build established: Skirmisher 3099 | -8/Mines | Entered Materials 3099 | -8/Materials | Accompanied by 3 allies 3099 | -8/Materials | Evolved 2 slots: Utility x2 3100 | -8/Materials | Identified exit to Factory 3526 | -8/Materials | Garrison activated, responded to threat 3642 | -8/Materials | Identified exit to Garrison 3642 | -8/Materials | Entered Garrison 3676 | -8/Garrison | Triggered checkpoint 3793 | -8/Garrison | Triggered checkpoint 4028 | -8/Garrison | Triggered checkpoint 4079 | -8/Garrison | Discovered exit to Factory (range 15) 4174 | -8/Garrison | Triggered checkpoint 4338 | -8/Garrison | Garrison Relay disabled 4676 | -8/Garrison | Discovered exit to Factory (range 12) 4698 | -8/Garrison | Attempted to access garrison exit controls, blocked by remote lockdown 4770 | -8/Garrison | Triggered checkpoint 4848 | -8/Garrison | Discovered exit to Factory (range 15) 4908 | -8/Garrison | Installed Relay Interface Framework 4914 | -8/Garrison | Entered Factory 4914 | -7/Factory | Evolved 2 slots: Utility x2 5501 | -7/Factory | Discovered new exit (range 67) 5510 | -7/Factory | Sucked down chute 5510 | -7/Factory | Entered Waste 5525 | -7/Waste | EMP discharged 5536 | -7/Waste | Spotted C-40 Crusher 5538 | -7/Waste | Crushed by Compactor (1 part destroyed, 1 dropped) 5546 | -7/Waste | Spotted C-40 Crusher 5548 | -7/Waste | Spotted C-40 Crusher 5590 | -7/Waste | Spotted C-40 Crusher 5625 | -7/Waste | EMP discharged 5625 | -7/Waste | System corruption reached 10% 5631 | -7/Waste | Spotted C-40 Crusher 5681 | -7/Waste | Crushed by Compactor (1 part destroyed, 2 dropped) 5684 | -7/Waste | Crushed by Compactor (1 part destroyed, 2 dropped) 5687 | -7/Waste | Crushed by Compactor (1 part destroyed, 2 dropped) 5687 | -7/Waste | Released all parts (3) 5702 | -7/Waste | Core integrity fell below 50% 5711 | -7/Waste | Spotted C-40 Crusher 5718 | -7/Waste | Lost 3 parts (1p1u1w) 5725 | -7/Waste | EMP discharged 5726 | -7/Waste | Discovered new exit (range 10) 5730 | -7/Waste | Entered Factory 5767 | -7/Factory | Build established: Mutant 5870 | -7/Factory | Fabricated L-41 Fighter? 5897 | -7/Factory | Fabricated Lgt. Fission Core (x2) 6130 | -7/Factory | First assault squad dispatched 6253 | -7/Factory | Discovered new exit (range 15) 6336 | -7/Factory | Entered another Factory area 6336 | -6/Factory | Evolved 2 slots: Propulsion x2 6686 | -6/Factory | First assault squad dispatched 6825 | -6/Factory | Fabricated Field Propulsion Drive? 6895 | -6/Factory | Lost 5 parts (2n1u2w) 7195 | -6/Factory | Fabricated Field Propulsion Drive? 7199 | -6/Factory | Build established: Scavenger-Mutant 7355 | -6/Factory | Discovered new exit (range 11) 7394 | -6/Factory | Entered another Factory area 7394 | -5/Factory | Evolved 2 slots: Power x1, Utility x1 7604 | -5/Factory | Build established: Machinist-Mutant 7757 | -5/Factory | Identified exit to Upper Caves 7971 | -5/Factory | Lost 6 parts (1p3n1u1w) 8126 | -5/Factory | Entered Upper Caves 8136 | -5/Upper Caves | Attracted the attention of an 0b10 checkpoint 8188 | -5/Upper Caves | Lost 3 parts (1u2w) 8347 | -5/Upper Caves | Discovered new exit (range 12) 8371 | -5/Upper Caves | Found Alien Artifact 8448 | -5/Upper Caves | Build established: Scavenger-Mutant 8474 | -5/Upper Caves | Entered another Upper Caves area 8483 | -5/Upper Caves | Attracted the attention of an 0b10 checkpoint 8552 | -5/Upper Caves | Lost 8 parts (3n2u3w) 8613 | -5/Upper Caves | Discovered new exit (range 7) 8829 | -5/Upper Caves | Attracted the attention of an 0b10 base 8842 | -5/Upper Caves | Identified Dimensional Node Initializer 8842 | -5/Upper Caves | Initialized slip node 8843 | -5/Upper Caves | Core integrity fell below 50% 8873 | -5/Upper Caves | Lost 11 parts (2p4n2u3w) 8920 | -5/Upper Caves | Core integrity fell below 20% 9105 | -5/Upper Caves | Build established: Mutant 9889 | -5/Upper Caves | Destroyed by S-27 Virus with Autogun Last Messages --------------- 09576_ D8VKRP7X9IA4,VV %A2TY489PZNNX